bitfinex-derivatives/quotes_ETHF0:USTF0_20250417
["timestamp","ask_amount","ask_price","bid_price","bid_amount"]
[1744900258091,3.10663968,1576.4,1576.1,3.18244968]
[1744900258290,1.83769968,1576.4,1576.3,1.26902]
[1744900258490,3.10665968,1576.4,1576.2,1.26904]
[1744900258699,1.83769968,1576.4,1576.3,1.26902]
[1744900259589,1.83769968,1576.4,1576.3,3.12542]
[1744900259797,0.00949968,1576.4,1576.3,3.12542]
[1744900260398,0.00949968,1576.4,1576.3,4.88762]
[1744900262486,9.6e-07,1576.8,1576.6,1.26878]
[1744900262692,9.6e-07,1577.0,1576.7,4.4765]
[1744900262997,6.17720993,1577.4,1577.3,1.26821]
[1744900263291,11.23660897,1577.4,1577.3,42.06821]
[1744900263491,11.23660897,1577.4,1577.2,6.85463]
[1744900263794,3.17074,1577.2,1576.5,3.17213]
[1744900263993,3.2078,1577.0,1576.9,1.26853]
[1744900264186,3.20780096,1577.0,1576.9,1.26853]
[1744900264385,9.6e-07,1577.0,1576.9,1.26853]
[1744900264794,3.20780096,1577.0,1576.9,1.26853]
[1744900265394,3.20780096,1577.0,1576.9,3.12653]
[1744900265796,3.20780096,1577.0,1576.9,4.93313]
[1744900266799,1.26853,1576.9,1576.8,0.00949968]
[1744900266998,3.19783096,1576.9,1576.8,0.00949968]
[1744900267201,11.86203096,1576.9,1576.8,0.00949968]
[1744900267803,1.26887,1576.5,1576.2,4.9793]
[1744900268000,3.2078,1576.4,1576.3,1.26902]
[1744900269200,3.2078,1576.4,1576.3,3.16442]
[1744900269792,3.2078,1576.4,1576.3,1.26902]
[1744900270800,1.26902,1576.3,1576.2,0.00949968]
[1744900271000,3.17315,1576.0,1575.0,3.17511]
[1744900271202,3.2078,1575.3,1575.2,1.2699]
[1744900271497,11.09043,1575.3,1574.5,16.74710472]
[1744900271807,4.47819,1574.6,1574.5,16.74710472]
[1744900272003,9.18619,1574.6,1574.5,12.83740472]
[1744900272297,16.09191,1574.6,1573.9,71.18690235]
[1744900272507,4.47851,1574.2,1573.9,71.18690235]
[1744900272800,9.78228043,1574.2,1574.1,24.35197077]
[1744900273003,14.78228043,1574.2,1574.1,24.35197077]
[1744900273198,14.78228043,1574.2,1574.1,18.85317077]
[1744900273398,1.27087,1574.0,1573.9,48.04529127]
[1744900273603,4.47875,1573.9,1573.8,9.16560485]
[1744900274099,8.1768,1573.9,1573.8,9.16560485]
[1744900274403,8.68385705,1573.9,1573.8,9.16560485]
[1744900274993,3.71485705,1573.9,1573.8,10.43663485]
[1744900275202,3.80157043,1573.9,1573.8,9.16560485]
[1744900275501,5.57846421,1573.9,1573.8,9.16560485]
[1744900275901,4.30751421,1573.9,1573.2,5.0252]
[1744900276102,4.30751421,1573.9,1573.8,1.27103]
[1744900276103,3.80157043,1573.9,1573.8,1.27103]
[1744900276403,4.3e-07,1573.9,1573.8,4.47883]
[1744900276705,0.82041026,1574.0,1573.9,1.27095]
[1744900276900,2.6e-07,1574.0,1573.9,15.74825]
[1744900277091,4.971,1574.5,1573.9,15.74825]
[1744900277092,3.2078,1574.6,1574.1,1.27079]
[1744900277297,3.2078,1574.6,1574.5,1.27047]
[1744900278094,3.2078,1574.6,1574.2,1.7749]
[1744900278294,3.2078,1574.6,1574.4,0.00953015]
[1744900278496,1.27047,1574.5,1574.4,1.78443015]
[1744900278695,1.27047,1574.5,1574.4,0.00953015]
[1744900278892,6.27047,1574.5,1574.4,0.00953015]
[1744900279702,3.2078,1574.6,1574.4,12.71193015]
[1744900279895,4.47819,1574.6,1574.5,1.853]
[1744900280296,1.27047,1574.5,1574.4,0.00953015]
[1744900280501,1.27047,1574.5,1574.4,12.71193015]
[1744900280705,3.2078,1574.6,1574.4,1.28002015]
[1744900281010,3.2078,1574.6,1574.5,15.82587]
[1744900281196,9.03760642,1574.7,1574.5,15.82587]
[1744900281396,4.06660642,1574.7,1574.6,13.97279]
[1744900281797,4.06660642,1574.7,1574.6,2.6296198]
[1744900282003,4.06660642,1574.7,1574.6,3.9000098]
[1744900282395,0.00953015,1574.7,1574.6,3.9000098]
[1744900283103,0.00953015,1574.7,1574.5,0.89263227]
[1744900283309,0.00953015,1574.7,1574.6,1.27039]
[1744900283507,1.27984015,1574.7,1574.5,2.16305227]
[1744900283810,1.27989015,1574.7,1574.5,2.16305227]
[1744900284510,1.27989015,1574.7,1574.5,0.89263227]
[1744900284713,0.00953015,1574.7,1574.6,1.27039]
[1744900286509,0.00953015,1574.7,1574.6,6.27039]
[1744900287099,1.27039,1574.6,1574.5,0.89263227]
[1744900287301,4.47819,1574.6,1574.5,0.89263227]
[1744900287506,5.43699,1574.6,1574.5,0.89263227]
[1744900288015,1.27047,1574.5,1574.4,0.00953015]
[1744900288210,7.22927,1574.5,1574.4,0.00953015]
[1744900288720,7.81004439,1574.5,1574.4,0.00953015]
[1744900288909,7.81004439,1574.5,1574.4,1e-08]
[1744900289415,8.31453908,1574.5,1574.4,1e-08]
[1744900290209,8.31454004,1574.5,1574.4,1e-08]
[1744900290409,1.53957535,1574.5,1574.4,1.27055001]
[1744900290616,0.58077535,1574.5,1574.4,4.47835001]
[1744900290815,0.00953015,1574.7,1574.6,1.27039]
[1744900291503,0.00953015,1574.7,1574.5,1.7548]
[1744900291705,0.00953015,1574.7,1574.6,1.27039]
[1744900292114,0.00953015,1574.7,1574.5,3.02524]
[1744900292417,1.27047,1574.5,1574.4,1e-08]
[1744900292615,1.27047,1574.5,1574.4,1.78060001]
[1744900292923,6.77565794,1574.5,1574.4,1e-08]
[1744900293119,1.27097,1573.9,1573.8,1.27102]
[1744900293312,5.99,1573.9,1573.8,1.27102]
[1744900293715,7.26095,1573.9,1573.8,1.27102]
[1744900294107,1.27103,1573.8,1573.7,1.7806]
[1744900294312,4.47883,1573.8,1573.7,1.7806]
[1744900294720,10.46883,1573.8,1573.7,1.7806]
[1744900294917,11.93352091,1573.8,1573.7,1.7806]
[1744900295117,1.27136,1573.4,1573.3,4.81858]
[1744900295308,8.1818,1573.6,1573.3,3.5472]
[1744900295507,3.2078,1573.6,1573.5,1.27128]
[1744900296109,4.47899,1573.6,1573.5,1.27128]
[1744900296319,3.2078,1573.6,1573.3,3.5472]
[1744900296523,1.27128,1573.5,1573.4,1.7527]
[1744900297219,4.05707627,1574.2,1574.1,1.27079]
[1744900297915,5.32778627,1574.2,1574.1,1.27079]
[1744900298116,4.64287697,1574.2,1574.1,1.27079]
[1744900298423,4.13320618,1574.2,1574.1,1.27079]
[1744900298817,1.27079,1574.1,1574.0,1.7527]
[1744900299019,1.78083474,1574.1,1574.0,1.7527]
[1744900299618,0.51004474,1574.1,1574.0,3.02357]
[1744900299815,4.05707627,1574.2,1574.1,1.27079]
[1744900300015,1.14677627,1574.2,1574.1,1.27079]
[1744900300425,1.14677627,1574.2,1574.1,6.27079]
[1744900300621,6.0945767,1574.3,1574.2,1.27071]
[1744900300819,0.2161767,1574.3,1574.2,1.27071]
[1744900301019,8.1133954,1574.6,1574.5,1.27047]
[1744900301224,8.18952531,1574.6,1574.5,1.27047]
[1744900301725,8.18952531,1574.6,1574.5,42.07047]
[1744900302029,1.27057,1574.4,1574.1,3.21733015]
[1744900302232,7.26067,1574.3,1574.1,0.00953015]
[1744900302418,5.99,1574.3,1574.1,0.00953015]
[1744900302617,5.99,1574.3,1574.1,40.80953015]
[1744900302927,5.99,1574.3,1574.2,1.27071]
[1744900303525,6.53221494,1574.3,1574.2,1.27071]
[1744900303926,6.53221494,1574.3,1574.2,3.04141]
[1744900304129,0.61834485,1574.3,1574.2,6.24921]
[1744900304632,0.61834485,1574.3,1574.2,11.24921]
[1744900304837,9.81614485,1574.3,1574.1,1.28030015]
[1744900305034,9.81614485,1574.3,1574.2,3.19671]
[1744900305233,9.74001494,1574.3,1574.2,3.19671]
[1744900305438,6.53221494,1574.3,1574.2,3.19671]
[1744900306037,0.54221494,1574.3,1574.2,3.19671]
[1744900306337,0.54221494,1574.3,1574.2,8.19671]
[1744900306934,0.54221494,1574.3,1574.2,11.40451]
[1744900307131,0.54221494,1574.3,1574.2,6.40451]
[1744900308132,0.54221494,1574.3,1574.2,3.19671]
[1744900308542,0.54221494,1574.3,1574.2,11.40451]
[1744900308935,0.54221494,1574.3,1574.2,52.20451]
[1744900309544,0.00953015,1574.7,1574.6,1.27039]
[1744900309738,0.00953015,1574.7,1574.6,6.48439]
[1744900310137,0.08566006,1574.7,1574.6,6.48439]
[1744900310538,0.08566006,1574.7,1574.5,1.8195]
[1744900310738,0.08566006,1574.7,1574.6,1.27039]
[1744900311237,0.00953015,1574.7,1574.6,1.27039]
[1744900311647,0.00953015,1574.7,1574.6,6.27039]
[1744900311945,0.00953015,1574.7,1574.6,6.48439]
[1744900312143,0.08566006,1574.7,1574.6,5.214]
[1744900312339,0.08566006,1574.7,1574.6,6.48439]
[1744900312539,6e-08,1574.7,1574.6,11.48439]
[1744900313140,5.99,1575.3,1575.2,1.2699]
[1744900313442,0.48505089,1575.3,1575.2,1.2699]
[1744900313940,2.31905089,1575.3,1575.2,1.2699]
[1744900314147,2.3951808,1575.3,1575.2,1.2699]
[1744900314344,1.91012991,1575.3,1575.2,1.2699]
[1744900314647,2.39492887,1575.3,1575.2,1.2699]
[1744900315639,7.39492887,1575.3,1575.2,1.2699]
[1744900315835,7.39492887,1575.3,1575.1,0.00953015]
[1744900316041,3.69259896,1575.2,1575.1,1.27948015]
[1744900316241,5.52659896,1575.2,1575.1,1.27948015]
[1744900317346,5.60272887,1575.2,1575.1,1.27948015]
[1744900317546,6.87262887,1575.2,1575.1,0.00953015]
[1744900317751,1.27005,1575.1,1574.9,1.2701]
[1744900317955,5.62469896,1575.0,1574.9,1.2701]
[1744900318147,11.61469896,1575.0,1574.9,0.07612991]
[1744900318352,17.88475896,1575.0,1574.9,1e-08]
[1744900318651,11.61469896,1575.0,1574.9,1.27015001]
[1744900318854,8.40689896,1575.0,1574.9,1.27015001]
[1744900319056,11.61469896,1575.0,1574.9,1.27015001]
[1744900319347,11.69082887,1575.0,1574.9,1.27015]
[1744900319754,32.78537245,1575.0,1574.9,1.27015]
[1744900319954,32.78524446,1575.0,1574.9,1.27015]
[1744900320150,32.70911455,1575.0,1574.9,1.27015]
[1744900320355,37.70911455,1575.0,1574.8,0.00953015]
[1744900320551,7.74482097,1574.9,1574.8,0.00953015]
[1744900320747,9.64182097,1574.9,1574.8,0.00953015]
[1744900321148,14.64182097,1574.9,1574.8,0.00953015]
[1744900321350,1.27028,1574.8,1574.5,3.17618]
[1744900321544,2.38154055,1574.7,1574.6,1.27039]
[1744900321858,0.53638913,1574.7,1574.6,3.17439]
[1744900322055,0.53638913,1574.7,1574.6,8.17439]
[1744900322358,5.99,1574.9,1574.8,1.27023]
[1744900322359,7.887,1574.9,1574.8,1.27023]
[1744900322559,5.99,1574.9,1574.8,1.27023]
[1744900323052,6.52624328,1574.9,1574.8,1.27023]
[1744900323846,0.53624328,1574.9,1574.8,1.27023]
[1744900324054,0.53624328,1574.9,1574.8,6.27023]
[1744900324253,0.53624328,1574.9,1574.8,6.34635991]
[1744900324955,0.53624328,1574.9,1574.8,9.55415991]
[1744900325156,3.00584608,1575.0,1574.9,1.27015]
[1744900325358,0.00953015,1575.4,1575.3,1.26982]
[1744900325557,0.00953015,1575.4,1575.3,6.48282]
[1744900325862,0.00953015,1575.4,1575.3,47.28282]
[1744900326552,0.00953015,1575.4,1575.3,40.8]
[1744900326756,0.00953015,1575.4,1575.3,42.06982]
[1744900326957,6.48439225,1575.4,1575.0,5.198]
[1744900327158,7.90363015,1575.4,1575.2,1.26989]
[1744900327358,7.90363015,1575.4,1575.3,1.26982]
[1744900327559,8.3889939,1575.4,1575.2,1.26984]
[1744900327756,3.2078,1575.3,1575.2,1.26989]
[1744900327958,5.99953015,1575.4,1575.3,1.26982]
[1744900329359,11.48504222,1575.4,1575.1,40.8]
[1744900329565,3.2078,1575.2,1575.1,42.06998]
[1744900329859,9.20733015,1575.4,1575.2,1.26985]
[1744900330053,0.48548389,1575.3,1575.2,1.26985]
[1744900330256,5.99953015,1575.4,1575.3,1.26982]
[1744900330465,1.5e-07,1575.4,1575.3,1.26982]
[1744900330765,1.5e-07,1575.4,1575.3,3.19742]
[1744900330963,1.5e-07,1575.4,1575.3,8.19742]
[1744900331261,1.5e-07,1575.4,1575.3,11.40522]
[1744900331458,1.5e-07,1575.4,1575.3,13.28662]
[1744900332268,6e-08,1575.4,1575.3,13.28662]
[1744900333363,3.2078,1575.8,1575.7,1.2695]
[1744900334172,3.28392991,1575.8,1575.7,1.2695]
[1744900335170,5.99953015,1575.9,1575.8,1.26942]
[1744900335470,6.48428659,1575.9,1575.8,1.26942]
[1744900335665,5.99953015,1575.9,1575.8,1.26942]
[1744900336064,5.99953015,1575.9,1575.8,6.46542]
[1744900336272,6.07566006,1575.9,1575.8,6.46542]
[1744900336665,0.08566006,1575.9,1575.8,6.46542]
[1744900336865,6e-08,1575.9,1575.8,16.49932]
[1744900337167,6e-08,1575.9,1575.8,13.29152]
[1744900337363,6e-08,1575.9,1575.8,8.29152]
[1744900339371,0.08566006,1576.0,1575.9,1.26934]
[1744900339573,0.08566006,1576.0,1575.9,3.09494]
[1744900340768,0.08566006,1576.0,1575.9,1.26934]
[1744900340769,6.60690729,1576.0,1575.9,1.26934]
[1744900340974,6.60690729,1576.0,1575.6,7.05563015]
[1744900340975,7.87618729,1576.0,1575.8,1.26935]
[1744900341269,3.73904723,1575.9,1575.8,1.26942]
[1744900341774,5.00839723,1575.9,1575.6,3.18347015]
[1744900342075,3.73904723,1575.9,1575.8,1.26942]
[1744900342272,5.66584723,1575.9,1575.8,1.34554991]
[1744900343181,5.74197714,1575.9,1575.8,1.26942]
[1744900343969,7.49610577,1575.9,1575.8,1.26942]
[1744900344175,11.22674188,1575.9,1575.8,1.26942]
[1744900344369,11.22674188,1575.9,1575.6,4.79133933]
[1744900344569,7.01131714,1575.9,1575.6,7.96527933]
[1744900344772,5.74197714,1575.9,1575.8,1.26942]
[1744900345072,0.53124723,1575.8,1575.3,3.809]
[1744900345270,3.2078,1575.4,1575.3,1.26982]
[1744900345470,6.52124723,1575.4,1575.3,1.26982]
[1744900346079,10.99883723,1575.4,1575.2,0.00953015]
[1744900346271,1.9395,1575.3,1575.2,1.27943015]
[1744900346673,7.9295,1575.3,1575.2,0.00953015]
[1744900346872,8.94539475,1575.3,1575.2,1.27943015]
[1744900347073,10.21521475,1575.3,1575.2,0.00953015]
[1744900347280,10.21521475,1575.3,1575.2,0.08566006]
[1744900347578,8.94539475,1575.3,1575.2,1.35556006]
[1744900347779,8.46074723,1575.3,1575.2,1.35556006]
[1744900348480,15.21546259,1575.3,1575.2,0.08566006]
[1744900348773,1.27013,1575.0,1574.7,1.27025]
[1744900348978,11.60841663,1574.9,1574.5,3.2078]
[1744900349181,11.1236,1574.9,1574.7,1.27025]
[1744900349479,11.1236,1574.9,1574.8,1.27023]
[1744900349673,11.1236,1574.9,1574.7,1.27024]
[1744900349977,12.3938,1574.9,1574.7,1.27981015]
[1744900350380,7.74499903,1574.8,1574.7,0.00953015]
[1744900350583,11.96870358,1574.8,1574.7,0.00953015]
[1744900350879,15.69847358,1574.8,1574.7,1.27984015]
[1744900351073,10.21370455,1574.8,1574.7,1.27984015]
[1744900351273,8.34050455,1574.8,1574.7,1.35597006]
[1744900351478,7.8091,1574.8,1574.7,1.35597006]
[1744900351879,9.1978,1574.9,1574.7,5.196]
[1744900352080,9.1978,1574.9,1574.8,3.21333]
[1744900352779,5.99,1574.9,1574.8,3.21333]
[1744900352984,7.81863015,1575.0,1574.9,1.27015]
[1744900353282,5.99953015,1575.0,1574.9,3.08705]
[1744900353481,5.99953015,1575.0,1574.9,1.27015]
[1744900353683,9.20733015,1575.0,1574.7,7.0129]
[1744900353875,1.8931,1574.9,1574.8,1.27023]
[1744900354282,1.96922991,1574.9,1574.8,1.27023]
[1744900354783,1.96922991,1574.9,1574.1,3.68453666]
[1744900354784,16.61968018,1574.9,1574.1,3.68453666]
[1744900355078,3.2078,1574.4,1574.3,1.27059]
[1744900355279,9.1978,1574.4,1574.0,4.99407]
[1744900355481,3.2078,1574.2,1574.1,1.27077]
[1744900355984,3.16373,1574.3,1574.1,1.27077]
[1744900356182,3.16373,1574.3,1573.6,3.67290162]
[1744900356183,9.1978,1574.2,1573.6,3.67290162]
[1744900356381,3.2078,1574.0,1573.6,3.17788]
[1744900356585,3.2078,1574.0,1573.6,40.8]
[1744900356586,7.8404,1573.9,1573.6,40.8]
[1744900356884,3.2078,1573.8,1573.6,42.07112]
[1744900357083,1.8504,1573.7,1573.6,42.07112]
[1744900357785,5.99953015,1574.1,1574.0,1.27087]
[1744900358179,7.84993015,1574.1,1574.0,1.27087]
[1744900358378,5.99953015,1574.1,1574.0,1.27087]
[1744900358586,5.99953015,1574.1,1574.0,5.21627]
[1744900358789,5.99953015,1574.1,1574.0,13.42407]
[1744900359080,5.99953015,1574.1,1574.0,10.21627]
[1744900359484,0.00953015,1574.1,1574.0,5.21627]
[1744900359886,0.00953015,1574.1,1574.0,3.25377]
[1744900360082,1.94193015,1574.1,1574.0,1.27087]
[1744900361181,2.01806006,1574.1,1574.0,1.27087]
[1744900361383,0.08566006,1574.1,1574.0,1.27087]
[1744900361582,6e-08,1574.1,1574.0,3.21397]
[1744900361786,6e-08,1574.1,1574.0,8.21397]
[1744900361991,8.2209828,1574.6,1574.0,8.21397]
[1744900361992,8.2209828,1574.6,1574.5,1.27047]
[1744900362293,8.29711271,1574.6,1574.5,1.27047]
[1744900362590,5.27955271,1574.6,1574.5,6.27047]
[1744900362787,1.36051271,1574.6,1574.5,11.43747]
[1744900363092,0.07612991,1574.6,1574.5,49.02967]
[1744900363383,0.07612991,1574.6,1574.5,44.02967]
[1744900364585,9.91e-06,1574.6,1574.5,44.02967]
[1744900364988,9.91e-06,1574.6,1574.5,49.02967]
[1744900365489,2.07723455,1574.7,1574.6,1.27039]
[1744900365689,7.35e-06,1574.9,1574.6,6.35079]
[1744900365882,8.58924302,1575.0,1574.9,1.27015]
[1744900366082,5.29033296,1575.0,1574.9,42.14627991]
[1744900366389,3.73544296,1575.0,1574.9,46.10307991]
[1744900366692,2.29666296,1575.0,1574.9,46.10307991]
[1744900366897,0.77575296,1575.0,1574.9,46.10307991]
[1744900367094,0.00953015,1575.1,1575.0,1.27006]
[1744900367295,0.00953015,1575.1,1575.0,8.45276]
[1744900368689,1.5e-07,1575.1,1575.0,11.66056]
[1744900369491,1.5e-07,1575.1,1575.0,8.45276]
[1744900370191,0.07613006,1575.1,1575.0,8.45276]
[1744900370498,6e-08,1575.1,1575.0,8.45276]
[1744900371592,9.1978,1575.9,1575.8,1.26942]
[1744900371790,9.68235341,1575.9,1575.7,1.26945]
[1744900371993,2.0492,1575.8,1575.6,1.26956]
[1744900372192,3.2078,1575.7,1575.6,1.26951]
[1744900372706,10.257,1575.7,1575.6,1.26951]
[1744900372890,5.257,1575.7,1575.6,42.06951]
[1744900373291,5.33312991,1575.7,1575.6,42.06951]
[1744900373490,16.32312991,1575.7,1575.5,1.27913015]
[1744900373691,23.50892991,1575.7,1575.5,0.00953015]
[1744900373897,1.26958,1575.6,1575.5,0.00953015]
[1744900374204,4.70271992,1575.6,1575.5,1.27919015]
[1744900374492,10.69271992,1575.6,1575.5,1.27919015]
[1744900374797,8.64681992,1575.6,1575.5,1.27919015]
[1744900375186,8.57069001,1575.6,1575.5,1.35532006]
[1744900375497,8.0392,1575.6,1575.5,1.35532006]
[1744900375897,8.0392,1575.6,1575.5,0.08566006]
[1744900376096,13.11532991,1575.6,1575.5,0.00953015]
[1744900376406,8.11532991,1575.6,1575.5,1.27919015]
[1744900377094,8.0392,1575.6,1575.5,1.27919015]
[1744900378793,2.0492,1575.6,1575.5,1.27919015]
[1744900379188,2.12532991,1575.6,1575.5,1.27919015]
[1744900379803,0.07612991,1575.6,1575.5,1.27919015]
[1744900380097,9.91e-06,1575.6,1575.5,3.21979015]
[1744900380302,9.91e-06,1575.6,1575.5,8.32469015]
[1744900380696,2.05150991,1575.6,1575.5,8.32469015]
[1744900381296,2.05150991,1575.6,1575.5,5.11689015]
[1744900381594,2.05150991,1575.6,1575.5,3.21979015]
[1744900382197,5.99,1575.7,1575.6,1.26958]
[1744900382392,5.99,1575.7,1575.6,9.61338]
[1744900382597,5.99,1575.7,1575.6,16.66598]
[1744900382803,0.00953015,1575.8,1575.7,1.2695]
[1744900382996,2.06103015,1575.8,1575.7,1.2695]
[1744900383196,2.13716006,1575.8,1575.7,1.2695]
[1744900383400,2.13716006,1575.8,1575.7,42.0695]
[1744900383595,0.08566006,1575.8,1575.7,49.0794]
[1744900383801,0.08566006,1575.8,1575.7,44.0794]
[1744900384097,7.07276006,1575.8,1575.5,0.00953015]
[1744900384297,3.2078,1575.7,1575.6,1.26958]
[1744900384497,1.9871,1575.7,1575.6,1.26958]
[1744900385096,14.87562991,1575.7,1575.5,0.00953015]
[1744900385305,5.34478,1575.6,1575.5,0.00953015]
[1744900385506,6.0623,1575.6,1575.5,0.00953015]
[1744900385703,12.33188,1575.6,1575.5,0.00953015]
[1744900387397,16.15160412,1575.6,1574.8,0.4961398]
[1744900387594,1.27018,1574.9,1574.5,1.93572991]
[1744900387799,3.8602,1574.8,1574.5,40.87612991]
[1744900388201,3.8602,1574.8,1574.7,1.27031]
[1744900388802,1.9232,1574.8,1574.7,1.27031]
[1744900388998,2e-08,1574.9,1574.8,1.27023]
[1744900389307,2e-08,1574.9,1574.8,3.30995991]
[1744900389506,2e-08,1574.9,1574.8,10.34855991]
[1744900390009,2e-08,1574.9,1574.8,46.14855991]
[1744900390210,2e-08,1574.9,1574.8,44.03383]
[1744900390404,2e-08,1574.9,1574.8,40.8]
[1744900390702,1.27027,1574.8,1574.6,0.00953015]
[1744900390907,2.0466,1574.7,1574.6,0.00953015]
[1744900391104,2.0466,1574.7,1574.6,1.27992015]
[1744900391306,2.0466,1574.7,1574.6,1.35605006]
[1744900391502,2.0466,1574.7,1574.6,0.08566006]
[1744900391910,3.31691,1574.7,1574.6,0.08566006]
[1744900392102,2.0466,1574.7,1574.6,0.08566006]
[1744900392307,2.58006489,1574.7,1574.6,0.08566006]
[1744900392504,0.53346489,1574.7,1574.6,47.20105006]
[1744900392815,3.2078,1574.8,1574.7,1.27031]
[1744900393313,3.2078,1574.8,1574.7,0.07612991]
[1744900393605,2e-08,1574.9,1574.7,5.07612991]
[1744900393798,2e-08,1574.9,1574.8,43.97043]
[1744900394403,2e-08,1574.9,1574.8,40.8]
[1744900394803,1.02004997,1574.9,1574.6,1.27986015]
[1744900395099,0.48657622,1574.8,1574.7,1.27031]
[1744900395307,1.80359378,1574.9,1574.7,1.27031]
[1744900395509,0.53343376,1574.8,1574.7,1.27031]
[1744900395702,0.53343376,1574.8,1574.6,0.00953015]
[1744900395903,0.53343376,1574.8,1574.7,1.27031]
[1744900396103,2e-08,1574.9,1574.7,1.34643991]
[1744900396299,2e-08,1574.9,1574.8,1.27023]
[1744900397013,0.53313735,1574.9,1574.8,1.27023]
[1744900397314,0.53313735,1574.9,1574.8,1.34635991]
[1744900397516,2e-08,1574.9,1574.8,1.34635991]
[1744900398411,2e-08,1574.9,1574.8,1.27023]
[1744900398609,2e-08,1574.9,1574.7,6.31626]
[1744900398804,2e-08,1574.9,1574.8,1.27023]
[1744900399212,2e-08,1574.9,1574.8,1.34635991]
[1744900400112,11.36072588,1574.9,1574.8,0.07612991]
[1744900400315,13.24152588,1574.9,1574.8,0.07612991]
[1744900400516,1.27031,1574.7,1574.6,0.00953015]
[1744900400721,4.96408586,1574.7,1574.6,0.00953015]
[1744900401017,10.49660343,1574.7,1574.6,0.00953015]
[1744900401214,10.49660343,1574.7,1574.6,0.08566006]
[1744900401611,4.22629343,1574.7,1574.6,1.35605006]
[1744900401815,3.74031757,1574.7,1574.6,1.35605006]
[1744900402221,3.74031757,1574.7,1574.6,1.27992015]
[1744900402409,3.2078,1574.7,1574.6,1.27992015]
[1744900402612,4.60460002,1574.9,1574.8,1.27023]
[1744900403322,4.60460002,1574.9,1574.8,6.34635991]
[1744900403323,2e-08,1574.9,1574.8,6.34635991]
[1744900403714,2e-08,1574.9,1574.8,4.37849821]
[1744900403910,2e-08,1574.9,1574.8,5.64872821]
[1744900404121,2e-08,1574.9,1574.8,8.93265812]
[1744900405114,2e-08,1574.9,1574.8,8.85652821]
[1744900405422,6.94106811,1575.7,1575.6,1.26958]
[1744900405722,6.94106811,1575.7,1575.6,6.31558]
[1744900405923,8.8320699,1575.7,1575.4,6.31568]
[1744900406217,7.63869981,1575.7,1575.4,6.8422]
[1744900406412,7.64822996,1575.7,1575.6,1.26958]
[1744900406924,7.64822996,1575.7,1575.6,42.06958]
[1744900407221,7.02672817,1575.7,1575.6,42.06958]
[1744900407620,0.70716185,1575.7,1575.6,42.06958]
[1744900407822,0.08566006,1575.7,1575.6,42.06958]
[1744900408216,0.00953015,1575.7,1575.6,42.06958]
[1744900408823,0.00953015,1575.7,1575.6,45.73638]
[1744900409616,0.00953015,1575.7,1575.6,44.4668]
[1744900409816,0.63103194,1575.7,1575.6,40.8]
[1744900410016,0.63103194,1575.7,1575.5,1.26964]
[1744900410217,0.63103194,1575.7,1575.6,1.26958]
[1744900411419,0.00953015,1575.7,1575.6,1.26958]
[1744900412120,0.63103194,1575.7,1575.6,1.26958]
[1744900412423,0.70716185,1575.7,1575.6,1.26958]
[1744900412624,2.56296185,1575.7,1575.6,1.26958]
[1744900413128,2.48683194,1575.7,1575.6,1.26958]
[1744900413829,2.48683194,1575.7,1575.5,1.2696]
[1744900414029,2.48683194,1575.7,1575.6,1.26958]
[1744900414229,2.48683194,1575.7,1575.4,47.63623015]
[1744900414424,2.48683194,1575.7,1575.6,1.26958]
[1744900415031,2.48683194,1575.7,1575.5,1.2696]
[1744900415232,2.48683194,1575.7,1575.6,1.26958]
[1744900415435,2.48683194,1575.7,1575.5,1.26959]
[1744900415630,2.48683194,1575.7,1575.6,1.26958]
[1744900415832,1.26966,1575.5,1575.4,0.00953015]
[1744900416133,4.47746,1575.5,1575.4,0.00953015]
[1744900416327,14.70356179,1575.5,1575.4,0.08566006]
[1744900416533,1.27009,1575.0,1574.6,10.15032]
[1744900416736,1.9414,1574.9,1574.8,1.27016]
[1744900417034,3.21157,1574.9,1574.7,42.07025]
[1744900417242,5.1492,1574.9,1574.8,1.27023]
[1744900417533,4.6046,1575.0,1574.9,1.27015]
[1744900417734,4.6046,1575.0,1574.9,6.33615]
[1744900418927,4.6046,1575.0,1574.8,1.9395]
[1744900419129,4.6046,1575.0,1574.9,1.27015]
[1744900420443,4.6046,1575.0,1574.9,6.33615]
[1744900421541,5.87442,1575.3,1575.1,1.26997]
[1744900421745,4.6046,1575.3,1575.2,1.2699]
[1744900421947,5.87444,1575.3,1575.1,1.26997]
[1744900422147,5.95058991,1575.3,1575.1,1.26997]
[1744900422446,3.2078,1575.2,1575.1,1.26997]
[1744900423446,3.28392991,1575.2,1575.1,1.26998]
[1744900424248,3.2078,1575.2,1575.1,1.26998]
[1744900424452,4.47773,1575.2,1575.0,3.22973]
[1744900424649,3.2078,1575.2,1575.1,1.26998]
[1744900424841,3.2078,1575.2,1574.9,10.68377]
[1744900425149,3.2078,1575.2,1575.1,1.26998]
[1744900425343,3.2078,1575.2,1574.9,10.75987991]
[1744900425545,4.47773,1575.2,1575.0,1.27003]
[1744900425741,4.47773,1575.2,1574.9,7.58452991]
[1744900425945,4.47786,1575.0,1574.9,0.07612991]
[1744900426451,5.00951184,1575.0,1574.9,0.07612991]
[1744900427349,1.27023,1574.8,1574.7,1.27982015]
[1744900427549,3.2078,1574.8,1574.7,1.27982015]
[1744900427852,3.2078,1574.8,1574.7,42.07982015]
[1744900428041,3.2078,1574.8,1574.7,1.27982015]
[1744900428241,3.2078,1574.8,1574.7,1.35595006]
[1744900428746,4.47803,1574.8,1574.7,0.08566006]
[1744900429146,9.08263,1574.8,1574.7,0.08566006]
[1744900430042,3.2078,1574.8,1574.7,1.35597006]
[1744900430547,0.00953015,1574.9,1574.8,1.27023]
[1744900430847,4.12094865,1575.2,1575.1,1.26998]
[1744900431148,5.46697856,1575.2,1575.0,5.067]
[1744900431347,1.26998,1575.1,1575.0,7.6956]
[1744900431548,5.46704856,1575.2,1575.0,8.96564]
[1744900431750,0.07612991,1575.2,1575.1,1.26998]
[1744900432247,13.50773282,1575.3,1575.2,1.2699]
[1744900432846,14.77756282,1575.3,1575.1,1.26992]
[1744900433042,14.77756282,1575.3,1575.0,7.6956]
[1744900433043,16.07053282,1575.3,1575.0,7.6956]
[1744900433247,16.07053282,1575.3,1575.2,1.2699]
[1744900433548,17.34036282,1575.3,1575.1,1.26993]
[1744900433748,16.07053282,1575.3,1575.1,1.26993]